bitfinex/quotes_BTCUSD_20250223
["timestamp","ask_amount","ask_price","bid_price","bid_amount"]
[1740279183465,0.11487049,96591.0,96580.0,0.15531]
[1740279183667,0.00774768,96590.0,96580.0,0.15531]
[1740279183824,0.10264569,96589.0,96581.0,0.15531]
[1740279184029,0.1148688,96589.0,96581.0,0.15531]
[1740279184491,0.1148688,96589.0,96580.0,0.15531]
[1740279184698,0.1148688,96589.0,96582.0,0.155307]
[1740279185195,0.00774768,96588.0,96582.0,0.155307]
[1740279185349,0.10264569,96587.0,96580.0,0.15531]
[1740279185553,0.11486712,96587.0,96582.0,0.155307]
[1740279186050,0.11486712,96587.0,96583.0,0.155306]
[1740279186844,0.00774768,96586.0,96583.0,0.155306]
[1740279187008,0.10264569,96585.0,96583.0,0.155306]
[1740279187372,0.01221889,96584.0,96583.0,0.155306]
[1740279187600,0.11486458,96584.0,96581.0,0.155308]
[1740279187747,0.10264569,96583.0,96581.0,0.155308]
[1740279188680,0.10264569,96583.0,96581.0,0.156308]
[1740279189300,0.10264569,96583.0,96581.0,0.157308]
[1740279189927,0.10264569,96583.0,96581.0,0.1590086]
[1740279190474,0.10264569,96583.0,96581.0,0.1610086]
[1740279190675,0.10264569,96583.0,96581.0,0.0057006]
[1740279190885,0.10264569,96583.0,96581.0,0.1610096]
[1740279191214,0.10264569,96583.0,96581.0,0.0057006]
[1740279191422,0.155308,96582.0,96581.0,0.0057006]
[1740279191559,0.10264569,96582.0,96581.0,0.0057006]
[1740279191748,0.11041661,96582.0,96581.0,0.0057006]
[1740279191945,0.11041661,96582.0,96581.0,0.0037006]
[1740279192796,0.11041661,96582.0,96581.0,0.0017006]
[1740279192999,0.11041661,96582.0,96581.0,0.0027006]
[1740279193418,0.11041661,96582.0,96581.0,0.0017006]
[1740279194059,0.12263804,96582.0,96581.0,0.0027006]
[1740279194441,0.12263804,96582.0,96581.0,0.0037006]
[1740279206063,0.11041661,96582.0,96581.0,0.0037006]
[1740279206288,0.12264142,96582.0,96581.0,0.0037006]
[1740279206817,0.1148705,96582.0,96581.0,0.0037006]
[1740279208984,0.1947705,96582.0,96581.0,0.0037006]
[1740279209972,0.35784309,96582.0,96581.0,0.0037006]
[1740279211374,0.88454309,96582.0,96581.0,0.0037006]
[1740279211527,0.89908394,96582.0,96581.0,0.0037006]
[1740279212141,0.89908394,96582.0,96581.0,0.0027006]
[1740279212995,0.89908394,96582.0,96581.0,0.0017006]
[1740279213824,0.90108394,96582.0,96581.0,0.0017006]
[1740279214185,0.90308394,96582.0,96581.0,0.0017006]
[1740279216689,0.89531935,96582.0,96581.0,0.0017006]
[1740279217268,0.90307227,96582.0,96581.0,0.0017006]
[1740279230234,0.62086427,96582.0,96581.0,0.0017006]
[1740279231634,0.60632342,96582.0,96581.0,0.0017006]
[1740279233125,0.76163142,96582.0,96581.0,0.0017006]
[1740279233655,0.60632342,96582.0,96581.0,0.0017006]
[1740279233855,0.76163142,96582.0,96581.0,0.0017006]
[1740279234067,0.60632342,96582.0,96581.0,0.0017006]
[1740279234848,0.76163142,96582.0,96581.0,0.0017006]
[1740279235248,0.60632342,96582.0,96581.0,0.0017006]
[1740279239790,0.60632342,96582.0,96581.0,0.02231395]
[1740279241389,0.76163142,96582.0,96581.0,0.02231395]
[1740279241549,0.60632342,96582.0,96581.0,0.02231395]
[1740279282856,0.60632342,96582.0,96581.0,0.0017006]
[1740279295138,0.76163142,96582.0,96581.0,0.0017006]
[1740279296997,0.84143142,96582.0,96581.0,0.0017006]
[1740279297611,0.85597227,96582.0,96581.0,0.0017006]
[1740279310868,0.76841935,96582.0,96581.0,0.0017006]
[1740279311206,0.77618905,96582.0,96581.0,0.0017006]
[1740279313605,0.77618905,96582.0,96581.0,0.02293862]
[1740279318737,0.77618905,96582.0,96581.0,0.0017006]
[1740279322661,0.85478905,96582.0,96581.0,0.0017006]
[1740279323676,0.85078905,96582.0,96581.0,0.0017006]
[1740279323858,0.85578905,96582.0,96581.0,0.0017006]
[1740279324069,0.85878905,96582.0,96581.0,0.0017006]
[1740279324437,0.90408905,96582.0,96581.0,0.0017006]
[1740279325602,0.155345,96559.0,96540.0,0.25531718]
[1740279325807,0.43389923,96558.0,96541.0,0.1594279]
[1740279326011,0.43389923,96558.0,96541.0,0.2112209]
[1740279326012,0.01171117,96557.0,96541.0,0.2112209]
[1740279326169,0.1159104,96557.0,96541.0,0.0040559]
[1740279326373,0.11435686,96557.0,96541.0,0.0040559]
[1740279326947,0.11439991,96557.0,96541.0,0.0040559]
[1740279327430,0.11595352,96557.0,96541.0,0.0040559]
[1740279327733,0.13049437,96557.0,96556.0,0.0018504]
[1740279327872,0.13049437,96557.0,96556.0,0.0008504]
[1740279327873,0.14088131,96557.0,96556.0,0.0008504]
[1740279328120,0.13049437,96557.0,96556.0,0.0008504]
[1740279328348,0.15068449,96557.0,96556.0,0.0008504]
[1740279330249,0.15668449,96557.0,96556.0,0.0008504]
[1740279330694,0.15268449,96557.0,96556.0,0.0008504]
[1740279331120,0.48438449,96557.0,96556.0,0.0008504]
[1740279331280,0.48483088,96557.0,96556.0,0.0008504]
[1740279331677,0.64017888,96557.0,96556.0,0.0008504]
[1740279334950,0.48483088,96557.0,96556.0,0.0008504]
[1740279341344,0.64017888,96557.0,96556.0,0.0008504]
[1740279343556,0.48483088,96557.0,96556.0,0.0008504]
[1740279343762,0.48483088,96557.0,96556.0,0.02181406]
[1740279344065,0.64017888,96557.0,96556.0,0.0008504]
[1740279345876,0.48483088,96557.0,96556.0,0.0008504]
[1740279348518,0.48483088,96557.0,96556.0,0.02185347]
[1740279348747,0.64017888,96557.0,96556.0,0.02185347]
[1740279349623,0.48483088,96557.0,96556.0,0.02185347]
[1740279350008,0.64017888,96557.0,96556.0,0.02185347]
[1740279350788,0.64017888,96557.0,96556.0,0.0008504]
[1740279355711,0.48483088,96557.0,96556.0,0.0008504]
[1740279356918,0.64017888,96557.0,96556.0,0.0008504]
[1740279365181,0.48483088,96557.0,96556.0,0.0008504]
[1740279365670,0.64017888,96557.0,96556.0,0.0008504]
[1740279366692,0.48483088,96557.0,96556.0,0.0008504]
[1740279368556,0.64017888,96557.0,96556.0,0.0008504]
[1740279368754,0.48483088,96557.0,96556.0,0.0008504]
[1740279370713,0.64017888,96557.0,96556.0,0.0008504]
[1740279375078,0.48483088,96557.0,96556.0,0.0008504]
[1740279375985,0.64017888,96557.0,96556.0,0.0008504]
[1740279386166,0.48483088,96557.0,96556.0,0.0008504]
[1740279388053,0.64017888,96557.0,96556.0,0.0008504]
[1740279389449,0.48483088,96557.0,96556.0,0.0008504]
[1740279389853,0.64017888,96557.0,96556.0,0.0008504]
[1740279392698,0.48483088,96557.0,96556.0,0.0008504]
[1740279394379,0.64017888,96557.0,96556.0,0.0008504]
[1740279394578,0.48483088,96557.0,96556.0,0.0008504]
[1740279395713,0.64017888,96557.0,96556.0,0.0008504]
[1740279396678,0.48483088,96557.0,96556.0,0.0008504]
[1740279396857,0.64017888,96557.0,96556.0,0.0008504]
[1740279398266,0.63817888,96557.0,96556.0,0.0008504]
[1740279398466,0.63417888,96557.0,96556.0,0.0008504]
[1740279398670,0.64217888,96557.0,96556.0,0.0008504]
[1740279410157,0.47229003,96557.0,96556.0,0.0008504]
[1740279410355,0.47229003,96557.0,96556.0,0.1562004]
[1740279411281,0.46729003,96557.0,96556.0,0.1562004]
[1740279411534,0.46629003,96557.0,96556.0,0.1562004]
[1740279411948,0.46429003,96557.0,96556.0,0.1562004]
[1740279412449,0.45186961,96557.0,96556.0,0.1582004]
[1740279413239,0.45186961,96557.0,96556.0,0.1602004]
[1740279414135,0.45186961,96557.0,96556.0,0.18074508]
[1740279416019,0.45186961,96557.0,96556.0,0.1602004]
[1740279420488,0.44409991,96557.0,96556.0,0.1602004]
[1740279431767,0.34145422,96557.0,96556.0,0.1602004]
[1740279432133,0.01175422,96557.0,96556.0,0.2381004]
[1740279432358,4.305e-05,96557.0,96556.0,0.2381004]
[1740279444654,4.305e-05,96557.0,96556.0,0.27045625]
[1740279445054,4.305e-05,96557.0,96556.0,0.2381004]
[1740279445212,4.305e-05,96557.0,96556.0,0.27045245]
[1740279452555,4.305e-05,96557.0,96556.0,0.19255245]
[1740279489081,4.305e-05,96557.0,96556.0,0.03720245]
[1740279489384,4.305e-05,96557.0,96556.0,0.0048504]
[1740279489756,0.01476574,96557.0,96556.0,0.0048504]
[1740279489958,0.11741143,96557.0,96556.0,0.0048504]
[1740279498647,0.10268874,96557.0,96556.0,0.0048504]
[1740279498849,0.11741143,96557.0,96556.0,0.0048504]
[1740279506448,0.19621143,96557.0,96556.0,0.0048504]
[1740279516034,0.20396794,96557.0,96556.0,0.0048504]
[1740279516974,0.70355679,96557.0,96556.0,0.0048504]
[1740279517245,0.74985679,96557.0,96556.0,0.0048504]
[1740279517641,0.74985679,96557.0,96556.0,0.0028504]
[1740279518137,0.75085679,96557.0,96556.0,0.0028504]
[1740279518538,0.74985679,96557.0,96556.0,0.0028504]
[1740279518718,0.74985679,96557.0,96556.0,0.0008504]
[1740279519041,0.75185679,96557.0,96556.0,0.0008504]
[1740279519426,0.74985679,96557.0,96556.0,0.0008504]
[1740279519586,0.75085679,96557.0,96556.0,0.0008504]
[1740279521250,0.75285679,96557.0,96556.0,0.0008504]
[1740279522194,0.90285679,96557.0,96556.0,0.0008504]
[1740279538132,0.70120879,96557.0,96556.0,0.0008504]
[1740279538336,0.62240879,96557.0,96556.0,0.0008504]
[1740279538750,0.77775679,96557.0,96556.0,0.0008504]
[1740279539307,0.77000028,96557.0,96556.0,0.0008504]
[1740279539502,0.61465228,96557.0,96556.0,0.0008504]
[1740279539709,0.77000028,96557.0,96556.0,0.0008504]
[1740279539923,0.77774624,96557.0,96556.0,0.0008504]
[1740279540124,0.62239824,96557.0,96556.0,0.0008504]
[1740279542405,0.77774624,96557.0,96556.0,0.0008504]
[1740279544367,0.62239824,96557.0,96556.0,0.0008504]
[1740279544501,0.77774624,96557.0,96556.0,0.0008504]
[1740279553363,0.7901552,96557.0,96556.0,0.0008504]
[1740279553577,0.6348072,96557.0,96556.0,0.0008504]
[1740279553779,0.7901552,96557.0,96556.0,0.0008504]
[1740279555379,0.6348072,96557.0,96556.0,0.0008504]
[1740279557606,0.7901552,96557.0,96556.0,0.0008504]
[1740279567622,0.6348072,96557.0,96556.0,0.0008504]
[1740279567823,0.7901552,96557.0,96556.0,0.0008504]
[1740279572428,0.6348072,96557.0,96556.0,0.0008504]
[1740279572577,0.7901552,96557.0,96556.0,0.0008504]
[1740279573845,0.6348072,96557.0,96556.0,0.0008504]
[1740279578872,0.47026635,96557.0,96556.0,0.1562004]
[1740279579792,0.47026635,96557.0,96556.0,0.0008504]
[1740279580885,0.45785739,96557.0,96556.0,0.0008504]
[1740279600234,0.45785739,96557.0,96556.0,0.0003904]
[1740279604102,0.45955819,96557.0,96556.0,0.0003904]
[1740279609461,0.21075819,96557.0,96556.0,0.0003904]
[1740279609666,0.86034704,96557.0,96556.0,0.0003904]
[1740279609881,0.99041637,96557.0,96556.0,0.0003904]
[1740279610094,0.95248591,96557.0,96556.0,0.0003904]
[1740279610564,0.75169904,96557.0,96556.0,0.0003904]
[1740279610824,0.47409904,96557.0,96556.0,0.0003904]
[1740279611040,0.47309904,96557.0,96556.0,0.0003904]
[1740279611660,0.45955819,96557.0,96556.0,0.0003904]
[1740279612047,0.0242125,96557.0,96556.0,0.0003904]
[1740279612425,0.0252125,96557.0,96556.0,0.0003904]
[1740279612827,0.0242125,96557.0,96556.0,0.0003904]
[1740279613053,0.0252125,96557.0,96556.0,0.0003904]
[1740279613227,0.0242125,96557.0,96556.0,0.0003904]
[1740279613428,0.01646654,96557.0,96556.0,0.0003904]
[1740279613632,0.01646654,96557.0,96556.0,0.0013904]
[1740279614465,0.01646654,96557.0,96556.0,0.11564077]
[1740279614669,0.01646654,96557.0,96556.0,0.16424077]
[1740279615973,0.01746654,96557.0,96556.0,0.16524077]
[1740279616355,0.01846654,96557.0,96556.0,0.17024077]
[1740279618005,0.00374385,96557.0,96556.0,0.17024077]
[1740279619107,0.00374385,96557.0,96556.0,0.32544584]
[1740279641079,0.00374385,96557.0,96556.0,0.47544584]
[1740279641292,0.001701,96576.0,96575.0,0.155319]
[1740279641587,0.00174409,96576.0,96575.0,0.155319]
[1740279642554,0.00274409,96576.0,96575.0,0.160319]
[1740279643332,0.00374409,96576.0,96575.0,0.167319]
[1740279647462,0.00374409,96576.0,96575.0,0.20752886]
[1740279647872,0.00374409,96576.0,96575.0,0.22844331]
[1740279651363,0.00374409,96576.0,96575.0,0.23648331]
[1740279652240,0.00274409,96576.0,96575.0,0.23148331]
[1740279652767,0.00274409,96576.0,96575.0,0.23048331]
[1740279652940,0.00174409,96576.0,96575.0,0.23148331]
[1740279653151,0.00274409,96576.0,96575.0,0.23848331]
[1740279653551,0.00274409,96576.0,96575.0,0.23148331]
[1740279653750,0.00274409,96576.0,96575.0,0.23848331]
[1740279659367,0.00089338,96591.0,96590.0,0.20561297]
[1740279659557,0.00089338,96591.0,96590.0,0.19361297]
[1740279659971,0.00089338,96591.0,96590.0,0.20061297]
[1740279660623,0.00089338,96591.0,96590.0,0.20761297]
[1740279662986,0.00089338,96591.0,96590.0,0.4262018]
[1740279663990,0.00089338,96591.0,96590.0,0.52884749]
[1740279667398,0.00089338,96591.0,96590.0,0.54884749]
[1740279673681,0.0017012,96602.0,96590.0,0.54884749]
[1740279673682,0.00166121,96602.0,96601.0,0.155277]
[1740279673880,0.00170429,96602.0,96601.0,0.305277]
[1740279674079,0.00170429,96602.0,96601.0,0.44016413]
[1740279674650,0.083,96620.0,96602.0,0.15]
[1740279674800,0.083,96620.0,96609.0,0.155265]
[1740279675004,0.083,96620.0,96609.0,0.18750644]
[1740279675272,0.0481,96627.0,96609.0,0.18750644]
[1740279675421,0.083,96626.0,96609.0,0.18750644]
[1740279675849,0.083,96626.0,96609.0,0.19450644]
[1740279676251,0.083,96626.0,96609.0,0.20150644]
[1740279676532,0.083,96626.0,96609.0,0.19450644]
[1740279676802,0.083,96626.0,96609.0,0.20150644]
[1740279682074,0.083,96626.0,96609.0,0.18750644]
[1740279682277,0.083,96626.0,96609.0,0.20785148]
[1740279682522,0.083,96626.0,96609.0,0.22185148]
[1740279682762,0.083,96626.0,96609.0,0.21485148]
[1740279682880,0.083,96626.0,96609.0,0.20785148]
[1740279683075,0.083,96626.0,96609.0,0.21485148]
[1740279683439,0.083,96626.0,96609.0,0.22185148]
[1740279684795,0.00066611,96610.0,96609.0,0.22185148]
[1740279696691,0.00066611,96610.0,96609.0,0.22355128]
[1740279709427,0.083,96626.0,96615.0,0.305255]
[1740279709581,0.083,96626.0,96615.0,0.33749644]
[1740279710755,0.083,96626.0,96615.0,0.35149644]
[1740279710964,0.083,96626.0,96615.0,0.34449644]
[1740279711107,0.083,96626.0,96615.0,0.33749644]
[1740279711457,0.083,96626.0,96615.0,0.35149644]
[1740279711955,0.083,96626.0,96615.0,0.36184934]
[1740279714257,0.00155229,96648.0,96615.0,0.36184934]
[1740279714258,0.0799018,96635.0,96615.0,0.46449503]
[1740279714486,0.0017018,96635.0,96615.0,0.46449503]
[1740279715821,0.0017018,96635.0,96621.0,0.155245]
[1740279716050,0.0017018,96635.0,96621.0,0.18748644]
[1740279717119,0.0017018,96635.0,96621.0,0.19448644]
[1740279717600,0.0017018,96635.0,96621.0,0.20148644]
[1740279720411,0.0017018,96635.0,96621.0,0.45413213]
[1740279720631,8e-07,96622.0,96621.0,0.45413213]
[1740279721919,8e-07,96622.0,96621.0,0.4752043]
[1740279722559,0.00149601,96623.0,96622.0,0.305244]
[1740279722831,3.92e-05,96623.0,96622.0,0.46013113]
[1740279723888,3.92e-05,96623.0,96622.0,0.67849113]
[1740279724632,3.92e-05,96623.0,96622.0,0.67149113]
[1740279725081,3.92e-05,96623.0,96622.0,0.67849113]
[1740279725965,3.92e-05,96623.0,96622.0,0.68549113]
[1740279730053,8e-07,96635.0,96626.0,0.02]
[1740279730237,0.0815,96664.0,96653.0,0.155194]
[1740279730433,0.0815,96664.0,96653.0,0.162874]
[1740279730738,0.00213194,96654.0,96653.0,0.19511761]
[1740279731464,0.00213194,96654.0,96653.0,0.162874]
[1740279732428,0.00213194,96654.0,96653.0,0.165874]
[1740279732835,0.00213194,96654.0,96653.0,0.162874]
[1740279732975,0.00213194,96654.0,96653.0,0.175874]
[1740279735159,0.00213194,96654.0,96653.0,0.168874]
[1740279735285,0.00213194,96654.0,96653.0,0.175874]
[1740279735484,0.00213194,96654.0,96653.0,0.169874]
[1740279735719,0.00213194,96654.0,96653.0,0.175874]
[1740279736715,0.00213194,96654.0,96653.0,0.168874]
[1740279737163,0.00213194,96654.0,96653.0,0.162874]
[1740279737389,0.00213194,96654.0,96653.0,0.169874]
[1740279738061,0.0815,96664.0,96663.0,0.155178]
[1740279738299,0.09669985,96664.0,96663.0,0.155178]
[1740279739353,0.09669985,96664.0,96663.0,0.159178]
[1740279739560,0.09669985,96664.0,96663.0,0.164178]
[1740279740996,0.09669985,96664.0,96663.0,0.17471583]
[1740279742504,0.09669985,96664.0,96663.0,0.19525026]
[1740279744190,0.09754935,96664.0,96663.0,0.19525026]
[1740279744907,0.09703204,96664.0,96663.0,0.19525026]
[1740279745653,0.08196145,96664.0,96663.0,0.19525026]
[1740279746263,0.08196145,96664.0,96663.0,0.19025026]
[1740279746466,0.08196145,96664.0,96663.0,0.19525026]
[1740279746672,0.08196145,96664.0,96663.0,0.19125026]
[1740279747028,0.08196145,96664.0,96663.0,0.19525026]
[1740279747182,0.08196145,96664.0,96663.0,0.20318288]
[1740279747948,0.08196145,96664.0,96663.0,0.19818288]
[1740279748595,0.08196145,96664.0,96663.0,0.20118288]
[1740279756026,0.08196145,96664.0,96663.0,0.20288348]
[1740279759932,0.08196145,96664.0,96663.0,0.0087006]
[1740279759933,0.23370714,96664.0,96663.0,0.0087006]
[1740279760130,0.24877285,96664.0,96663.0,0.0087006]
[1740279760549,0.4184897,96664.0,96663.0,0.0087006]
[1740279760747,0.4184897,96664.0,96663.0,0.0047006]
[1740279761048,0.4184897,96664.0,96663.0,0.0017006]
[1740279761628,0.42625232,96664.0,96663.0,0.0017006]
[1740279762432,0.27107632,96664.0,96663.0,0.0017006]
[1740279762640,0.42625232,96664.0,96663.0,0.0017006]
[1740279763231,0.27107632,96664.0,96663.0,0.0017006]
[1740279763439,0.25653547,96664.0,96663.0,0.0017006]
[1740279766003,0.24877285,96664.0,96663.0,0.0017006]
[1740279766200,0.09702716,96664.0,96663.0,0.1568786]
[1740279766771,0.08196145,96664.0,96663.0,0.1568786]
[1740279767429,0.00097876,96664.0,96663.0,0.1608786]
[1740279767832,0.00097876,96664.0,96663.0,0.1638786]
[1740279771212,0.00097876,96664.0,96663.0,0.02945856]
[1740279772582,0.0160412,96664.0,96663.0,0.02945856]
[1740279772783,0.00097876,96664.0,96663.0,0.02945856]
[1740279773526,0.08377876,96664.0,96663.0,0.02945856]
[1740279774343,0.08377876,96664.0,96663.0,0.02545856]
[1740279774615,0.08377876,96664.0,96663.0,0.02845856]
[1740279774856,0.34160045,96664.0,96663.0,0.02845856]
[1740279775285,0.34160045,96664.0,96663.0,0.02545856]
[1740279775588,0.39130045,96664.0,96663.0,0.02445856]
[1740279776816,0.23612445,96664.0,96663.0,0.02445856]
[1740279777016,0.23612445,96664.0,96663.0,0.02645856]
[1740279777220,0.39905173,96664.0,96663.0,0.02445856]
[1740279777618,0.39905173,96664.0,96663.0,0.02245856]
[1740279780565,0.41411265,96664.0,96663.0,0.02245856]
[1740279781464,0.41411265,96664.0,96663.0,0.0017006]
[1740279782512,0.25893665,96664.0,96663.0,0.0017006]
[1740279782704,0.41411265,96664.0,96663.0,0.0017006]
[1740279786077,0.5786535,96664.0,96663.0,0.0017006]
[1740279786927,0.9083535,96664.0,96663.0,0.0017006]
[1740279787688,0.91212327,96664.0,96663.0,0.0017006]
[1740279789369,0.91512327,96664.0,96663.0,0.0017006]
[1740279789807,0.91212327,96664.0,96663.0,0.0017006]
[1740279790631,0.91612327,96664.0,96663.0,0.0017006]
[1740279802715,0.71124727,96664.0,96663.0,0.0017006]
[1740279803480,0.86642327,96664.0,96663.0,0.0017006]
[1740279803675,0.71124727,96664.0,96663.0,0.0017006]
[1740279804082,0.86642327,96664.0,96663.0,0.0017006]
[1740279805004,0.86005428,96664.0,96663.0,0.0017006]
[1740279805221,0.86305428,96664.0,96663.0,0.0017006]
[1740279805440,0.70787828,96664.0,96663.0,0.0017006]
[1740279805828,0.70487828,96664.0,96663.0,0.0017006]
[1740279806002,0.70787828,96664.0,96663.0,0.0017006]
[1740279806202,0.62646851,96664.0,96663.0,0.0017006]
[1740279808677,0.78164451,96664.0,96663.0,0.0017006]
[1740279808871,0.62646851,96664.0,96663.0,0.0017006]
[1740279809295,0.78164451,96664.0,96663.0,0.0017006]
[1740279809647,0.62646851,96664.0,96663.0,0.0017006]
[1740279810243,0.46192766,96664.0,96663.0,0.0017006]
[1740279811001,0.45892766,96664.0,96663.0,0.0017006]
[1740279811453,0.45992766,96664.0,96663.0,0.0017006]
[1740279813876,0.02758197,96664.0,96663.0,0.0017006]
[1740279814422,0.00875128,96664.0,96663.0,0.0017006]
[1740279814622,0.001,96664.0,96663.0,0.0017006]
[1740279814825,0.001,96664.0,96663.0,0.2055786]
[1740279814953,0.001,96664.0,96663.0,0.0504006]
[1740279815153,0.001,96664.0,96663.0,0.2055786]
[1740279815357,0.001,96664.0,96663.0,0.0504006]
[1740279815581,0.001,96664.0,96663.0,0.2055786]
[1740279816511,0.0018503,96664.0,96663.0,0.2055786]
[1740279820264,0.0018503,96664.0,96663.0,0.2085786]
[1740279820488,0.0008503,96664.0,96663.0,0.2085786]
[1740279820688,0.0008503,96664.0,96663.0,0.2125786]
[1740279821036,0.0008503,96664.0,96663.0,0.0087006]
[1740279821239,0.0008503,96664.0,96663.0,0.1638786]
[1740279821831,0.0008503,96664.0,96663.0,0.0087006]
[1740279822155,0.0159124,96664.0,96663.0,0.0087006]
[1740279823128,0.0159124,96664.0,96663.0,0.0057006]
[1740279823331,0.0008503,96664.0,96663.0,0.0087006]
[1740279823542,0.0008503,96664.0,96663.0,0.0047006]
[1740279823747,0.0008503,96664.0,96663.0,0.0087006]
[1740279823957,0.0008503,96664.0,96663.0,0.0107006]
[1740279824362,0.0008503,96664.0,96663.0,0.0067006]
[1740279824577,0.0008503,96664.0,96663.0,0.0087006]
[1740279831260,0.0159124,96664.0,96663.0,0.0087006]
[1740279831464,0.0008503,96664.0,96663.0,0.0087006]
[1740279835155,0.00860233,96664.0,96663.0,0.0087006]
[1740279839721,0.00860233,96664.0,96663.0,0.0067006]
[1740279840133,0.00860233,96664.0,96663.0,0.0037006]
[1740279840369,0.00860233,96664.0,96663.0,0.0047006]
[1740279840583,0.00860233,96664.0,96663.0,0.0027006]
[1740279840808,0.00860233,96664.0,96663.0,0.0057006]
[1740279841786,0.16377833,96664.0,96663.0,0.0057006]
[1740279842645,0.26642402,96664.0,96663.0,0.0057006]
[1740279842852,0.34812402,96664.0,96663.0,0.0057006]
[1740279843303,0.36266487,96664.0,96663.0,0.0017006]
[1740279844331,0.36466487,96664.0,96663.0,0.0017006]
[1740279846619,0.20948887,96664.0,96663.0,0.0017006]
[1740279847034,0.36466487,96664.0,96663.0,0.0017006]
[1740279848485,0.69436487,96664.0,96663.0,0.0017006]
[1740279848872,0.53918887,96664.0,96663.0,0.0017006]
[1740279850332,0.69436487,96664.0,96663.0,0.0017006]
[1740279855660,0.55424961,96664.0,96663.0,0.0017006]
[1740279855822,0.47254961,96664.0,96663.0,0.0017006]
[1740279858466,0.62772561,96664.0,96663.0,0.0017006]
[1740279859161,0.47254961,96664.0,96663.0,0.0017006]
[1740279860552,0.62772561,96664.0,96663.0,0.0017006]
[1740279861165,0.61997358,96664.0,96663.0,0.0017006]
[1740279861392,0.46479758,96664.0,96663.0,0.0017006]
[1740279861600,0.47255715,96664.0,96663.0,0.0017006]
[1740279862293,0.62773315,96664.0,96663.0,0.0017006]
[1740279864139,0.47255715,96664.0,96663.0,0.0017006]
[1740279864567,0.62773315,96664.0,96663.0,0.0017006]
[1740279878995,0.90133315,96664.0,96663.0,0.0017006]
[1740279880101,0.89933315,96664.0,96663.0,0.0017006]
[1740279880405,0.90233315,96664.0,96663.0,0.0017006]
[1740279896096,0.60537099,96664.0,96663.0,0.0017006]
[1740279896503,0.60537099,96664.0,96663.0,6e-07]
[1740279896721,0.60237099,96664.0,96663.0,6e-07]
[1740279896928,0.78883128,96664.0,96663.0,6e-07]
[1740279897126,0.79383128,96664.0,96663.0,6e-07]
[1740279897584,0.75153099,96664.0,96663.0,4e-07]
[1740279897830,0.75653099,96664.0,96663.0,4e-07]
[1740279898040,0.76419575,96664.0,96663.0,4e-07]
[1740279899124,0.75919575,96664.0,96663.0,4e-07]
[1740279899533,0.76619575,96664.0,96663.0,4e-07]
[1740279903822,0.86884144,96664.0,96663.0,4e-07]
[1740279904028,0.76619575,96664.0,96663.0,4e-07]
[1740279908035,1.09589575,96664.0,96663.0,4e-07]
[1740279908633,1.09589575,96664.0,96663.0,2e-07]
[1740279914040,1.10337575,96664.0,96663.0,2e-07]
[1740279916130,1.09589575,96664.0,96663.0,2e-07]
[1740279916274,1.10337575,96664.0,96663.0,2e-07]
[1740279918286,1.07063791,96664.0,96663.0,2e-07]
[1740279919277,1.06315791,96664.0,96663.0,2e-07]
[1740279919485,1.07063791,96664.0,96663.0,2e-07]
[1740279919896,1.10337575,96664.0,96663.0,2e-07]
[1740279923956,0.99417575,96664.0,96663.0,2e-07]
[1740279925575,0.305192,96654.0,96653.0,0.001699]
[1740279925711,0.75207854,96654.0,96653.0,0.001699]
[1740279925955,0.76706331,96654.0,96653.0,0.001699]
[1740279926400,0.31975585,96640.0,96639.0,0.0759]
[1740279926595,0.43736506,96640.0,96639.0,0.0759]
[1740279927250,0.44512463,96640.0,96639.0,0.0759]
[1740279928623,0.44812463,96640.0,96639.0,0.0759]
[1740279929169,0.45112463,96640.0,96639.0,0.0759]
[1740279931244,0.155232,96629.0,96628.0,0.0778]
[1740279931565,0.61707904,96629.0,96628.0,0.0778]
[1740279931968,0.62483861,96629.0,96628.0,0.0778]
[1740279932349,0.62488162,96629.0,96628.0,0.0788]
[1740279932882,0.62488162,96629.0,96628.0,0.0798]
[1740279933887,0.62488162,96629.0,96628.0,0.0788]
[1740279934022,0.62488162,96629.0,96628.0,0.0778]
[1740279943736,0.62488162,96629.0,96628.0,0.079501]
[1740279943938,0.62488162,96629.0,96628.0,0.10073202]
[1740279949275,0.62488162,96629.0,96628.0,0.02293202]
[1740279950188,0.62488162,96629.0,96628.0,0.001701]
[1740279950662,0.77488162,96629.0,96628.0,0.001701]
[1740279951046,0.7850468,96629.0,96628.0,0.001701]
[1740279952465,0.305244,96622.0,96609.0,0.0016998]
[1740279952667,0.42243054,96622.0,96609.0,0.0016998]
[1740279952951,0.43973736,96622.0,96609.0,0.0016998]
[1740279953660,0.44173736,96622.0,96609.0,0.0016998]
[1740279953884,0.44473736,96622.0,96609.0,0.0016998]
[1740279954107,0.46492773,96622.0,96609.0,0.0016998]
[1740279955490,0.79462773,96622.0,96609.0,0.0016998]
[1740279957056,0.87592773,96622.0,96609.0,0.0016998]
[1740279957858,0.87392773,96622.0,96609.0,0.0016998]
[1740279958288,0.87592773,96622.0,96609.0,0.0016998]
[1740279958491,0.96535275,96622.0,96609.0,0.0016998]
[1740279958906,0.95935275,96622.0,96609.0,0.0016998]
[1740279959107,0.92502773,96622.0,96609.0,0.0016998]
[1740279959310,0.93202773,96622.0,96609.0,0.0016998]
[1740279959427,0.92702773,96622.0,96609.0,0.0016998]
[1740279959619,0.93402773,96622.0,96621.0,0.0026996]
[1740279962520,0.92702773,96622.0,96621.0,0.0026996]
[1740279962722,0.92702773,96622.0,96621.0,0.0016996]
[1740279962944,0.92702773,96622.0,96621.0,0.0026996]
[1740279962945,0.96860386,96622.0,96621.0,0.0026996]
[1740279963149,0.96160386,96622.0,96621.0,0.0026996]
[1740279963547,0.96860386,96622.0,96621.0,0.0026996]
[1740279964220,0.305263,96610.0,96609.0,0.0016998]
[1740279964391,0.42244954,96610.0,96609.0,0.0016998]
[1740279964619,0.44319687,96610.0,96609.0,0.0016998]
[1740279965155,0.46338724,96610.0,96609.0,0.0016998]
[1740279965355,0.54018724,96610.0,96609.0,0.0016998]
[1740279965578,0.54618724,96610.0,96609.0,0.0016998]
[1740279966106,0.55018724,96610.0,96609.0,0.0016998]
[1740279967321,0.87588724,96610.0,96609.0,0.0016998]
[1740279967525,0.86988724,96610.0,96609.0,0.0016998]
[1740279967725,0.88188724,96610.0,96609.0,0.0016998]
[1740279967905,0.80508724,96610.0,96609.0,0.0016998]
[1740279974496,0.31981485,96603.0,96585.0,0.046]
[1740279974701,0.75216054,96603.0,96585.0,0.046]
[1740279974902,0.77289775,96603.0,96585.0,0.046]
[1740279975472,0.79808812,96603.0,96585.0,0.046]
[1740279975676,0.80108812,96603.0,96585.0,0.046]
[1740279977971,0.80108812,96603.0,96602.0,0.02224362]
[1740280003299,0.155299,96588.0,96585.0,0.046]
[1740280003509,0.12335814,96587.0,96585.0,0.046]
[1740280004140,0.14354851,96587.0,96585.0,0.046]
[1740280004511,0.14354851,96587.0,96585.0,0.04643114]
[1740280005399,0.02019037,96586.0,96585.0,0.04643114]
[1740280005599,0.14354705,96586.0,96585.0,0.04643114]